bitfinex/quotes_ETHUSD_20220220
["timestamp","ask_amount","ask_price","bid_price","bid_amount"]
[1645394592937,0.9633552,2609.1,2608.9,0.00097582]
[1645394593735,0.9633552,2609.1,2608.4,0.95895]
[1645394593935,0.9633552,2609.1,2608.9,0.00097582]
[1645394594536,0.00354135,2609.3,2608.9,0.00097582]
[1645394594939,2.12166722,2609.5,2608.7,0.95888]
[1645394594940,0.1915,2609.5,2608.7,0.95888]
[1645394595146,0.00354148,2609.3,2608.9,1.9183658]
[1645394595637,0.00354148,2609.3,2608.9,3.08766733]
[1645394596049,1.11376625,2609.6,2608.9,3.08669153]
[1645394596438,0.00354148,2609.3,2608.9,3.08766733]
[1645394596697,0.00354148,2609.3,2609.0,0.9587]
[1645394597294,0.00624721,2609.8,2609.0,0.9587]
[1645394597589,0.00354154,2609.3,2609.0,0.9587]
[1645394598593,0.86643847,2609.8,2609.0,0.9587]
[1645394598797,0.00354154,2609.3,2609.0,0.9587]
[1645394599093,0.81998001,2609.8,2609.3,1.09556885]
[1645394599490,0.81998001,2609.8,2609.0,0.9587]
[1645394599691,0.09872639,2610.0,2609.2,0.95867]
[1645394600746,0.84538642,2609.9,2609.2,2.14695677]
[1645394601148,0.00354156,2609.7,2609.2,2.14695677]
[1645394601546,0.00354156,2609.7,2609.2,0.95867]
[1645394602144,0.84538642,2609.9,2608.9,2.49844129]
[1645394602545,0.84538642,2609.9,2609.0,0.00098463]
[1645394602546,0.00354157,2609.6,2609.0,0.00098463]
[1645394602743,0.00354157,2609.6,2609.2,1.07412874]
[1645394603347,0.84538642,2609.9,2609.2,1.07412874]
[1645394603546,0.00354158,2609.5,2609.2,1.07412874]
[1645394603751,0.00354158,2609.5,2609.1,0.95869]
[1645394604599,0.09872639,2610.0,2609.1,0.95869]
[1645394604799,0.00354159,2609.4,2609.1,0.95869]
[1645394605604,0.00354159,2609.4,2609.2,0.84788919]
[1645394605802,1.11666798,2609.9,2609.2,0.84788919]
[1645394606001,0.00354153,2609.4,2609.2,0.84788919]
[1645394606905,1.11666798,2609.9,2609.2,0.84788919]
[1645394607108,0.00354159,2609.4,2609.1,0.95869]
[1645394608032,1.11666798,2609.9,2609.1,0.95869]
[1645394608333,0.00354153,2609.4,2609.1,0.95869]
[1645394609335,1.11666798,2609.9,2609.1,0.95869]
[1645394609535,0.00354153,2609.4,2609.1,0.95869]
[1645394610436,1.11666798,2609.9,2609.1,0.95869]
[1645394610841,0.00354153,2609.4,2609.1,0.95869]
[1645394611694,1.11666798,2609.9,2609.1,0.95869]
[1645394612091,0.00354153,2609.4,2609.1,0.95869]
[1645394612888,0.00616467,2609.8,2609.1,0.95869]
[1645394613288,0.00354153,2609.4,2609.1,0.85869]
[1645394614092,0.00616467,2609.8,2609.1,0.85869]
[1645394614490,0.00354153,2609.4,2609.1,0.85869]
[1645394614693,0.00354153,2609.4,2609.0,0.00098463]
[1645394614893,0.95068138,2609.3,2609.0,0.00098463]
[1645394615096,1.14218138,2609.3,2609.0,0.00098463]
[1645394615339,0.95068138,2609.3,2608.4,0.9376979]
[1645394615762,0.1950414,2609.4,2609.0,0.00098463]
[1645394615943,0.0035414,2609.4,2609.0,0.00098463]
[1645394616148,0.4415,2610.1,2609.1,21.0]
[1645394616350,0.25,2610.1,2609.2,5.12834063]
[1645394616556,0.09872639,2610.0,2609.3,14.90980063]
[1645394616855,0.09872639,2610.0,2609.5,1.0321591]
[1645394617045,0.09872639,2610.0,2609.6,3.73613063]
[1645394617244,0.09872639,2610.0,2609.7,1.92834063]
[1645394617448,0.09872639,2610.0,2609.7,5.09089]
[1645394617648,0.09872639,2610.0,2609.7,2.87455]
[1645394618246,0.09872639,2610.0,2609.7,3.83289]
[1645394618451,0.09872639,2610.0,2609.8,0.95006713]
[1645394619692,0.25,2610.7,2609.9,15.0]
[1645394619893,0.0078733,2610.8,2609.9,15.0]
[1645394620093,0.0078733,2610.8,2609.9,15.553]
[1645394620596,0.00354799,2610.4,2610.1,1.08377954]
[1645394620793,0.00354799,2610.4,2610.2,1.9161435]
[1645394621101,0.00354799,2610.4,2610.3,0.9580584]
[1645394621400,0.02206315,2610.8,2610.3,2.58586064]
[1645394621401,0.0078733,2610.8,2610.3,2.58586064]
[1645394621595,0.0078733,2610.8,2610.4,1.62780224]
[1645394621798,0.0078733,2610.8,2610.4,1.92780224]
[1645394621799,0.02206315,2610.8,2610.4,1.92780224]
[1645394622000,0.02206315,2610.8,2610.5,3.04368486]
[1645394622196,2.01381866,2611.7,2610.5,4.95941486]
[1645394622399,0.1915,2612.0,2610.8,0.95791]
[1645394622598,0.1915,2612.0,2610.9,0.95804]
[1645394623541,0.95436478,2611.9,2611.2,1.02884469]
[1645394623741,0.1913,2611.8,2611.2,1.02884469]
[1645394624142,0.95436478,2611.9,2611.3,0.95798]
[1645394624547,0.95436478,2611.9,2610.8,1.91607]
[1645394624943,0.1913,2612.0,2610.9,3.8]
[1645394625149,0.00355374,2611.5,2611.0,1.9158798]
[1645394625743,0.00355374,2611.5,2611.0,0.95805]
[1645394626243,1.11562105,2611.8,2611.1,0.97156805]
[1645394626445,0.00327161,2611.4,2611.1,0.97156805]
[1645394627293,0.0083,2612.1,2611.1,0.97156805]
[1645394627494,0.00295229,2611.4,2611.1,0.97156805]
[1645394628593,0.0083,2612.1,2611.1,0.97156805]
[1645394628793,0.00295229,2611.4,2611.1,0.97156805]
[1645394629795,0.93130107,2611.9,2611.0,0.95805]
[1645394629998,0.00327309,2611.4,2611.0,0.95805]
[1645394630637,0.89766456,2611.9,2611.0,0.95805]
[1645394630839,0.89766456,2611.9,2611.0,0.85805]
[1645394631237,0.89766456,2611.9,2611.1,1.12961753]
[1645394631439,0.89766456,2611.9,2611.0,0.85805]
[1645394631641,0.00608387,2611.8,2611.0,0.85805]
[1645394632639,0.00608387,2611.8,2611.0,1.75079791]
[1645394633040,0.75374843,2611.9,2611.0,1.75079791]
[1645394633542,0.1996,2612.1,2611.1,0.15]
[1645394633743,0.1996,2612.1,2611.3,0.95795]
[1645394634793,0.00355504,2611.9,2611.6,0.00111509]
[1645394635890,0.89615874,2612.0,2611.3,1.25795]
[1645394636088,0.0035551,2611.9,2611.6,0.00111508]
[1645394636992,0.89615874,2612.0,2611.3,2.18285339]
[1645394637189,0.0035551,2611.9,2611.6,0.00111508]
[1645394638242,0.0083,2612.1,2611.3,2.18285339]
[1645394638643,0.0035551,2611.9,2611.6,0.00111508]
[1645394639446,0.0035551,2611.9,2609.9,3.52799526]
[1645394639447,21.0,2611.5,2609.9,3.52799526]
[1645394639653,5.0,2610.5,2609.3,8.163876]
[1645394639848,0.01230806,2609.8,2608.5,0.1915]
[1645394640052,0.01242402,2609.8,2608.9,2.60511052]
[1645394640250,0.1915,2609.7,2609.0,1.62813875]
[1645394640449,1.03538365,2609.1,2608.9,2.60511052]
[1645394640645,0.553,2609.0,2608.9,2.60511052]
[1645394641247,6.91,2609.7,2609.0,1.08827244]
[1645394641445,0.553,2609.6,2609.0,1.08827244]
[1645394641698,0.9495782,2609.4,2609.0,1.08827244]
[1645394641890,0.553,2609.3,2609.0,1.08827244]
[1645394643294,0.553,2609.3,2609.0,1.08938304]
[1645394644301,0.553,2609.3,2609.0,1.08827244]
[1645394644497,0.503,2609.3,2609.0,1.38938304]
[1645394644704,0.553,2609.8,2609.1,1.62809642]
[1645394644898,0.553,2609.8,2609.1,0.1915]
[1645394645098,0.0083,2610.1,2609.1,0.1915]
[1645394645742,0.0083,2610.1,2609.5,0.00111041]
[1645394645743,1.07096738,2610.0,2609.5,0.00111041]
[1645394646745,1.07096738,2610.0,2609.1,0.1915]
[1645394646946,1.02096738,2610.0,2609.6,0.00111034]
[1645394647546,1.97965738,2610.0,2609.6,0.00111034]
[1645394647949,1.97965738,2610.0,2609.0,1.38827244]
[1645394648149,5.4176006,2609.9,2609.7,0.00111032]
[1645394648348,3.5,2609.8,2609.7,0.00111032]
[1645394648847,4.053,2609.8,2609.7,0.00111032]
[1645394649089,1.00439026,2609.2,2609.0,0.87886076]
[1645394649292,3.5,2609.6,2609.0,0.87886076]
[1645394649493,1.5119105,2609.7,2609.0,0.87886076]
[1645394649892,0.553,2609.7,2609.0,0.87886076]
[1645394650294,0.88168208,2609.4,2609.0,0.87886076]
[1645394650793,0.553,2609.7,2609.0,0.87886076]
[1645394651397,0.95891,2609.5,2609.0,0.87886076]
[1645394651894,0.95891,2609.5,2609.2,0.00110774]
[1645394652096,0.1915,2609.4,2609.2,0.00110774]
[1645394652494,1.91786,2609.5,2609.2,0.00110774]
[1645394652847,1.91786,2609.5,2609.0,0.87886076]
[1645394652848,0.91430074,2609.2,2609.0,0.87886076]
[1645394653639,0.553,2609.7,2609.0,0.87886076]
[1645394654138,0.553,2609.7,2609.0,0.8799686]
[1645394654340,9.1886,2610.0,2609.0,0.8799686]
[1645394654341,9.7416,2610.0,2609.0,0.8799686]
[1645394654539,0.853,2610.0,2609.0,0.8799686]
[1645394654738,1.17752324,2609.7,2609.0,1.74718484]
[1645394654938,1.17752324,2609.7,2609.0,0.8799686]
[1645394655140,1.17752324,2609.7,2609.0,0.87886076]
[1645394655339,1.17752324,2609.7,2609.4,0.00110767]
[1645394656342,5.4175146,2609.9,2609.0,0.87886076]
[1645394656343,0.86804637,2609.3,2609.0,0.87886076]
[1645394656595,4.6883512,2610.0,2609.0,0.87886076]
[1645394656991,1.15026,2609.9,2609.0,0.87886076]
[1645394657594,0.92061089,2609.4,2609.0,0.87886076]
[1645394657793,0.92061089,2609.4,2609.3,0.00110769]
[1645394658590,0.92061089,2609.4,2609.0,0.87886076]
[1645394659090,0.92061089,2609.4,2609.2,0.00110774]
[1645394659891,0.92061089,2609.4,2609.0,0.87886076]
[1645394660091,0.553,2609.8,2609.2,0.00110776]
[1645394661138,1.74606441,2609.8,2609.1,1.04254205]
[1645394661340,1.74606441,2609.8,2609.4,0.00110767]
[1645394662342,1.74606441,2609.8,2609.0,0.87886076]
[1645394662544,1.74606441,2609.8,2609.5,0.00110763]
[1645394663145,5.0,2609.7,2609.0,0.87780681]
[1645394663344,1.74606441,2609.8,2609.0,0.8734766]
[1645394663547,1.12921829,2609.4,2609.0,0.8734766]
[1645394664190,0.553,2609.8,2609.0,0.8734766]
[1645394664794,0.0083,2610.1,2609.0,0.8734766]
[1645394664996,0.25,2610.3,2609.1,1.62802865]
[1645394665196,0.25,2610.3,2609.7,0.84881119]
[1645394665393,0.00601498,2610.4,2609.7,0.84881119]
[1645394666795,0.00601498,2610.4,2609.7,1.14881119]
[1645394666997,0.25,2610.9,2609.7,12.91881119]
[1645394666998,0.00601498,2610.7,2609.7,12.91881119]
[1645394667204,0.25,2610.9,2609.8,3.6915]
[1645394667205,0.00601498,2610.8,2609.8,3.6915]
[1645394667852,1.0898617,2610.8,2610.1,1.04212091]
[1645394668248,1.0898617,2610.8,2610.1,1.34212091]
[1645394669255,0.00601498,2610.8,2610.1,1.34212091]
[1645394669458,0.0008,2611.4,2610.8,0.01167737]
[1645394669853,0.31333913,2612.2,2610.9,13.0]
[1645394670061,0.06,2612.4,2611.0,15.27]
[1645394670257,0.06,2612.4,2611.9,0.87847737]
[1645394670454,0.21,2612.6,2611.9,0.3]
[1645394670653,1.00655309,2612.7,2611.9,0.3]
[1645394671059,1.00655309,2612.7,2611.6,0.4913]
[1645394671256,0.95655309,2612.7,2611.6,2.40619]
[1645394671456,0.95655309,2612.7,2611.8,0.93724062]
[1645394671700,0.95655309,2612.7,2611.8,1.79194062]
[1645394671898,0.95655309,2612.7,2611.8,2.28324062]
[1645394672097,0.95655309,2612.7,2611.9,0.95742]
[1645394672098,0.00353647,2612.4,2611.9,0.95742]
[1645394672298,0.00353647,2612.4,2612.0,0.3]
[1645394673098,0.95655309,2612.7,2612.0,0.3]
[1645394673300,0.00353648,2612.3,2612.0,0.3]
[1645394674197,0.97069687,2612.7,2612.0,0.3]
[1645394674198,0.95655309,2612.7,2612.0,0.3]
[1645394674598,0.00353648,2612.3,2612.0,0.3]
[1645394675446,0.95655309,2612.7,2612.0,0.3]
[1645394675645,0.00353648,2612.3,2612.0,0.3]
[1645394676748,0.1913,2613.2,2612.0,0.3]
[1645394677048,0.0032629,2612.3,2612.0,0.3]
[1645394677448,0.0032629,2612.3,2612.2,1.15396303]
[1645394677649,0.0032629,2612.3,2612.0,0.3]
[1645394677848,0.85544258,2612.8,2612.0,0.3]
[1645394678046,0.00326288,2612.4,2612.0,0.3]
[1645394679108,0.86849216,2612.8,2612.0,0.3]
[1645394679109,0.85544258,2612.8,2612.0,0.3]
[1645394679304,0.00326289,2612.3,2612.0,0.3]
[1645394680310,0.85544258,2612.8,2611.9,0.3]
[1645394680707,0.0032629,2612.3,2611.9,0.3]
[1645394681205,0.0032629,2612.3,2612.0,0.0008]
[1645394681406,0.85544258,2612.8,2612.0,0.0008]
[1645394681807,0.0032807,2612.2,2612.0,0.0008]
[1645394682606,1.06749859,2612.4,2612.0,0.0008]
[1645394683146,0.1913,2613.1,2612.0,0.0008]
[1645394683147,0.0032807,2612.2,2612.0,0.0008]
[1645394683945,0.1913,2613.1,2612.0,0.0008]
[1645394684150,0.0032807,2612.2,2612.0,0.0008]
[1645394685055,3.50595137,2612.5,2612.0,0.0008]
[1645394685252,0.553,2612.4,2612.0,0.0008]
[1645394685450,0.00327924,2612.2,2612.0,0.0008]
[1645394685848,0.7443,2612.1,2612.0,0.0008]
[1645394686049,1.86997931,2612.1,2612.0,0.0008]
[1645394687600,5.36997931,2612.1,2612.0,0.0008]
[1645394688901,5.31997931,2612.1,2612.0,0.0008]
[1645394689904,6.31997931,2612.1,2612.0,0.0008]
[1645394690342,6.31997931,2612.1,2611.0,0.0008]
[1645394690343,1.02897716,2611.7,2611.0,0.0008]
[1645394690748,0.00595137,2611.6,2611.0,0.0008]
[1645394691346,0.00923068,2611.6,2611.0,0.0008]
[1645394691547,0.00327931,2611.6,2611.0,0.0008]
[1645394692347,0.00595137,2612.1,2611.0,0.0008]
[1645394692547,0.00327924,2611.6,2611.0,0.0008]
[1645394692945,0.00327924,2611.6,2611.3,1.01316411]
[1645394693544,0.00595137,2612.1,2611.3,1.01316411]
[1645394693745,0.00595137,2612.1,2611.0,0.0008]
[1645394693746,0.0032794,2611.6,2611.0,0.0008]
[1645394694595,0.00595137,2612.1,2611.0,0.0008]
[1645394694993,0.00327924,2611.6,2611.2,0.95163622]
[1645394695295,0.00327924,2611.6,2611.2,1.25163622]
[1645394695794,0.00327924,2611.6,2611.2,2.20946622]
[1645394695993,0.00595137,2612.2,2611.6,0.00638402]
[1645394696192,0.01311594,2611.9,2611.6,0.00638402]
[1645394696994,0.00595137,2612.1,2611.6,0.00638402]
[1645394697198,0.55895137,2612.2,2611.6,0.00638402]
[1645394697400,1.04547257,2611.9,2611.6,0.00638402]
[1645394697599,1.51122,2611.8,2611.6,0.00638402]
[1645394697853,1.81122,2611.8,2611.6,0.00638402]
[1645394698743,0.1913,2611.7,2611.6,0.00638402]
[1645394698941,0.7443,2611.7,2611.6,0.00638402]
[1645394699944,0.7444,2611.7,2611.6,0.00638402]
[1645394700146,0.4444,2611.7,2611.6,0.00638402]
[1645394700446,0.4444,2611.7,2611.6,0.00718402]
[1645394700646,3.9444,2611.7,2611.6,0.00718402]
[1645394700845,4.9444,2611.7,2611.6,0.00718402]
[1645394701244,9.9444,2611.7,2611.6,0.00718402]
[1645394701696,4.9444,2611.7,2611.6,0.00718402]
[1645394702493,4.8944,2611.7,2611.6,0.00718402]
[1645394704496,9.8944,2611.7,2611.6,0.00718402]
[1645394704898,4.8944,2611.7,2611.6,0.00718402]
[1645394705095,9.8944,2611.7,2611.6,0.00718402]
[1645394705539,9.8944,2611.7,2611.6,0.00638402]
[1645394705741,4.8944,2611.7,2611.6,0.00638402]
[1645394706739,4.8444,2611.7,2611.6,0.00638402]
[1645394707338,1.3444,2611.7,2611.6,0.00638402]
[1645394707546,1.3444,2611.7,2611.6,8.402e-05]
[1645394707547,16.7544,2611.7,2611.6,8.402e-05]
[1645394707744,21.0,2611.6,2611.0,0.00191243]
[1645394707941,5.0,2611.1,2611.0,0.0008]
[1645394708140,6.0443,2611.1,2611.0,0.0008]
[1645394708341,7.0443,2611.1,2611.0,0.00191243]
[1645394708542,3.50437194,2611.1,2611.0,0.00191243]
[1645394708744,6.81307194,2611.1,2611.0,0.00191243]
[1645394708948,6.81307194,2611.1,2609.3,0.1913]
[1645394708949,21.0,2610.9,2609.3,0.1913]
[1645394709206,5.3,2610.6,2609.4,1.62798067]
[1645394709406,0.553,2610.5,2609.5,1.62798067]
[1645394709612,1.553,2610.5,2609.6,1.62798067]
[1645394709807,1.91756,2610.3,2609.7,1.62798067]
[1645394710005,1.91756,2610.3,2609.8,1.62798067]
[1645394710006,0.553,2610.2,2609.8,1.62798067]
[1645394710208,0.553,2610.2,2609.6,0.97616682]
[1645394711307,0.553,2610.2,2610.0,1.16405695]
[1645394711514,0.1915,2610.5,2610.0,1.16405695]
[1645394711515,0.553,2610.5,2610.1,3.5]
[1645394711711,1.1774,2610.6,2610.0,1.16405695]
[1645394712310,3.077,2610.9,2610.0,1.16405695]
[1645394712512,0.4415,2611.0,2610.4,1.07040921]
[1645394712712,0.1915,2611.0,2610.4,1.07040921]
[1645394713548,0.0083,2611.1,2610.4,1.07040921]
[1645394713752,1.3656,2611.3,2610.4,1.37040921]
[1645394713958,13.92264104,2611.6,2610.5,3.5]
[1645394713959,0.25,2611.6,2610.5,3.5]
[1645394714349,0.0035358,2611.5,2610.6,0.00110979]
[1645394714548,0.0035358,2611.5,2611.4,0.86346638]
[1645394715148,0.00595137,2612.0,2611.4,0.86346638]
[1645394715355,0.90605478,2612.1,2611.4,0.86346638]
[1645394715550,0.00353657,2611.6,2611.4,0.86346638]
[1645394716350,0.00595137,2612.1,2611.4,0.86346638]
[1645394716590,0.00353657,2611.6,2611.4,0.86346638]
[1645394717490,0.00595137,2612.1,2611.4,0.86346638]
[1645394717895,0.00353657,2611.6,2611.4,0.86346638]
[1645394718690,0.00595137,2612.2,2611.4,0.86346638]
[1645394719091,0.00353657,2611.6,2611.4,1.16346638]
[1645394719895,0.00595137,2612.2,2611.4,1.16346638]
[1645394720094,0.00353657,2611.6,2611.4,1.16346638]
[1645394720367,0.01414414,2612.0,2611.6,0.01041021]
[1645394720954,0.01414414,2612.0,2611.8,1.02664332]
[1645394721151,0.00595137,2612.2,2611.8,1.02664332]
[1645394721353,0.00595137,2612.4,2611.8,1.02664332]
[1645394722252,0.00595137,2612.7,2611.8,1.02664332]
[1645394723352,1.56903585,2612.8,2611.8,1.02664332]
[1645394723753,1.56903585,2612.8,2611.8,2.28425332]
[1645394723754,0.00353647,2612.4,2611.8,2.28425332]
[1645394724190,0.00353647,2612.4,2611.8,1.98425332]
[1645394724794,1.56903585,2612.8,2612.2,1.09948123]
[1645394724993,0.01414383,2612.6,2612.2,1.09948123]
[1645394725995,0.25,2612.9,2612.2,1.09948123]
[1645394726195,0.00353645,2612.5,2612.2,1.09948123]
[1645394727196,0.9230538,2613.0,2612.2,1.09948123]
[1645394727396,0.00353562,2612.5,2612.2,1.09948123]
[1645394727597,0.00353562,2612.5,2611.8,0.3]
[1645394727855,0.00353562,2612.5,2611.7,0.3]
[1645394728060,0.00353562,2612.5,2611.6,0.50171021]
[1645394728358,0.9230538,2613.0,2611.6,0.50171021]
[1645394728557,0.0032011,2612.2,2611.6,0.50171021]
[1645394728756,0.0032011,2612.2,2612.0,1.12462736]
[1645394729456,0.88549144,2612.6,2612.0,1.12462736]
[1645394729859,0.0032011,2612.2,2612.0,1.12462736]
[1645394730660,0.88549144,2612.6,2612.0,1.12462736]
[1645394731064,0.00353565,2612.2,2612.0,1.12462736]
[1645394731896,0.88549144,2612.6,2612.0,1.12462736]
[1645394732094,0.00353565,2612.2,2612.0,1.12462736]
[1645394733099,0.88549144,2612.6,2612.0,1.12462736]
[1645394733298,0.00353565,2612.2,2612.0,1.12462736]
[1645394734301,0.1913,2613.0,2612.0,1.12462736]
[1645394734503,0.00353565,2612.2,2612.0,1.12462736]
[1645394735357,0.00353565,2612.2,2611.7,0.95769]
[1645394735560,0.1913,2613.0,2611.7,1.25769]
[1645394735759,0.00353565,2612.2,2611.7,1.25769]
[1645394736460,0.00353565,2612.2,2611.8,1.1331658]
[1645394736660,1.05007647,2612.6,2611.8,1.1331658]
[1645394737061,0.00353567,2612.1,2611.8,1.1331658]
[1645394737862,0.1913,2613.0,2611.8,1.1331658]
[1645394738059,0.7443,2613.0,2611.8,1.1331658]
[1645394738260,0.00353567,2612.1,2611.8,1.1331658]
[1645394739098,0.00588622,2612.9,2611.8,1.1331658]
[1645394739495,0.00353567,2612.1,2611.8,0.6331658]
[1645394740296,0.94838861,2612.5,2611.8,0.6331658]
[1645394740496,0.95427483,2612.5,2611.8,0.6331658]
[1645394740694,0.00353567,2612.1,2611.8,0.6331658]
[1645394741499,0.00588622,2612.8,2611.7,0.3]
[1645394741696,0.19718622,2612.8,2611.7,0.3]
[1645394741895,0.00353567,2612.1,2611.6,0.31041021]
[1645394742098,0.00353567,2612.1,2611.6,0.01041021]
[1645394742696,0.00588622,2612.1,2611.6,0.01041021]
[1645394742950,0.00353568,2612.0,2611.6,0.01041021]
[1645394743352,0.00353568,2612.0,2611.6,0.51041021]
[1645394743551,0.00353568,2612.0,2611.6,0.01041021]
[1645394743951,0.81824981,2612.2,2611.6,0.01041021]
[1645394744156,0.00353569,2611.9,2611.6,0.01041021]
[1645394745153,0.81824981,2612.2,2611.6,0.01041021]
[1645394745355,0.0035357,2611.9,2611.6,0.01041021]
[1645394746354,0.81824981,2612.2,2611.6,0.01041021]
[1645394746611,0.0035357,2611.9,2611.6,0.01041021]
[1645394746808,0.0035357,2611.9,2611.2,0.0011156]
[1645394747608,0.89629902,2611.7,2611.0,2.61392641]
[1645394747808,0.89950006,2611.7,2611.0,1.37132641]
[1645394748007,0.89950006,2611.7,2610.6,3.5]
[1645394748208,1.19950006,2611.7,2610.7,1.62708034]
[1645394748606,1.19950006,2611.7,2610.5,1.24740044]
[1645394748806,1.08759902,2611.7,2610.6,1.62723659]
[1645394749008,1.09079963,2611.7,2610.7,1.17545934]
[1645394749208,1.09079963,2611.7,2610.8,1.62723659]
[1645394749607,1.09079963,2611.7,2610.7,1.17545934]
[1645394750010,1.08759902,2611.7,2610.7,1.17324034]
[1645394750213,0.3,2611.4,2611.1,0.00111287]
[1645394750646,0.89053848,2611.3,2611.1,0.00111287]
[1645394750850,1.19053848,2611.3,2611.1,0.00111287]
[1645394751149,1.19053848,2611.3,2611.0,1.9162]
[1645394751747,1.19053848,2611.3,2610.7,2.13131094]
[1645394752350,1.19053848,2611.3,2610.7,3.08947094]
[1645394752547,1.19053848,2611.3,2610.7,1.9162306]
[1645394752948,0.9581592,2611.4,2610.7,1.9162306]
[1645394753147,0.19450037,2611.7,2610.7,1.9162306]
[1645394753547,0.1913,2611.7,2611.0,0.95805]
[1645394753749,0.1913,2611.7,2611.1,1.91607]
[1645394753951,1.01642401,2611.6,2611.1,1.91607]
[1645394754199,1.97445901,2611.6,2611.1,1.91607]
[1645394754400,2.27445901,2611.6,2611.1,1.91607]
[1645394754607,2.46575901,2611.6,2611.1,1.91607]
[1645394754803,1.9164046,2611.5,2610.9,1.91625]
[1645394755102,0.3,2611.6,2611.2,0.00111002]
[1645394755307,0.00353374,2611.7,2611.2,0.00111002]
[1645394755503,0.00353374,2611.7,2610.9,2.83331002]
[1645394755700,0.00353374,2611.7,2611.2,3.5]
[1645394755901,0.00353374,2611.7,2610.9,2.83331002]
[1645394755902,0.9580286,2611.6,2610.9,2.83331002]
[1645394756107,0.94143852,2611.5,2611.2,0.95799]
[1645394756801,0.94143852,2611.5,2611.1,1.91598]
[1645394759857,0.94143852,2611.5,2611.2,0.00110727]
[1645394760055,0.96156246,2611.6,2611.2,0.00110727]
[1645394760260,0.00353386,2611.6,2611.2,3.54414006]
[1645394760455,0.00353386,2611.6,2611.2,1.91710727]
[1645394760654,0.00353386,2611.6,2611.3,1.62702347]
[1645394760854,0.9579409,2611.9,2611.2,1.916]
[1645394760855,1.2579409,2611.9,2611.2,1.916]
[1645394761055,0.00353399,2611.6,2611.2,0.91710727]
[1645394761356,0.00353399,2611.6,2611.3,0.95795]
[1645394761605,0.00353399,2611.6,2611.3,1.91583]
[1645394762001,1.2579409,2611.9,2611.3,1.91583]
[1645394762303,0.00353405,2611.6,2611.3,1.90385]
[1645394762607,0.00249405,2611.6,2611.3,1.90385]
[1645394763001,0.19040405,2611.9,2611.5,1.05409203]
[1645394763602,3.4274286,2612.1,2611.5,2.01199203]
[1645394763804,0.9578431,2612.2,2611.5,2.01199203]
[1645394764005,0.19718622,2612.3,2611.5,2.96982203]
[1645394764205,0.00588622,2612.3,2611.8,1.91539]
[1645394764606,0.96363192,2612.5,2611.8,1.91539]
[1645394764805,1.09701217,2612.4,2611.8,1.91539]
[1645394765364,2.35480027,2612.4,2611.8,1.91539]
[1645394765757,2.35480027,2612.4,2611.6,1.91539]
[1645394765953,0.00353398,2612.2,2611.6,1.91539]
[1645394766752,0.9578952,2612.2,2611.6,1.91539]
[1645394767158,0.00588622,2612.3,2611.9,1.00141621]
[1645394767356,0.01303862,2612.4,2611.9,1.95907621]
[1645394767753,0.01303862,2612.4,2612.0,2.58423134]
[1645394767956,0.00588622,2612.5,2612.0,0.95758]
[1645394768151,0.25588622,2612.6,2612.0,0.95758]
[1645394768354,0.25588622,2612.6,2612.1,1.62656238]
[1645394768558,0.38037248,2613.3,2612.1,17.85396238]
[1645394768857,0.25,2613.3,2612.4,0.95728]
[1645394769113,10.0387239,2613.9,2612.4,0.95728]
[1645394769114,2.40739638,2613.9,2612.6,11.77]
[1645394769315,2.2853239,2613.9,2612.7,19.21216235]
[1645394769515,2.2853239,2613.9,2613.1,11.77]
[1645394769516,1.7853239,2613.9,2613.1,11.77]
[1645394769714,1.7853239,2613.9,2613.3,0.95686]
[1645394769915,1.7853239,2613.9,2613.5,0.95691]
[1645394770117,1.7353239,2613.9,2613.5,0.95691]
[1645394770516,1.7353239,2613.9,2613.5,3.82779]
[1645394770712,1.7353239,2613.9,2613.6,0.95583919]
[1645394770913,1.7353239,2613.9,2613.6,1.91289919]
[1645394771212,1.6853239,2613.9,2613.6,1.91289919]
[1645394772013,1.68885767,2613.9,2613.6,1.91289919]
[1645394772214,1.1482796,2614.4,2613.6,1.91289919]
[1645394772215,0.1912,2614.9,2613.8,12.0]
[1645394772419,2.50752724,2615.0,2614.1,0.9566]
[1645394772420,0.5909845,2615.0,2614.1,0.9566]
[1645394772616,0.5909845,2615.0,2614.3,5.0]
[1645394772871,0.5909845,2615.0,2614.2,15.27]
[1645394772872,0.5,2615.9,2614.5,22.77]
[1645394773060,0.9945796,2615.4,2614.7,0.9005847]
[1645394773258,0.8945796,2615.4,2614.7,1.91256]
[1645394773457,0.8945796,2615.4,2614.8,0.95628]
[1645394773658,1.6385796,2615.4,2614.1,3.82517]
[1645394773858,1.0855796,2615.4,2614.1,3.82517]
[1645394774262,0.9568885,2615.3,2614.1,6.69531]
[1645394774458,0.65693863,2614.9,2614.3,0.95686]
[1645394774661,0.65693863,2614.9,2613.8,3.8266]
[1645394774858,0.95693863,2614.9,2613.8,7.3266]
[1645394775258,0.1912,2614.8,2613.8,3.8266]
[1645394775458,0.8945796,2614.5,2613.9,1.18531192]
[1645394775663,0.9570628,2614.4,2614.1,0.95702]
[1645394776260,1.2570628,2614.4,2613.8,3.8266]
[1645394776461,1.8100628,2614.4,2613.6,3.5]
[1645394776711,1.9145997,2614.2,2613.6,3.5]
[1645394776903,1.9145997,2614.2,2612.7,6.40469997]
[1645394776904,0.9573819,2613.8,2612.7,6.40469997]
[1645394777101,0.92203389,2613.7,2613.0,1.1116343]
[1645394777303,1.22203389,2613.7,2613.0,1.1116343]
[1645394777501,1.22203389,2613.7,2613.1,3.5]
[1645394777705,1.22203389,2613.7,2612.9,1.91473]
[1645394777903,0.7443,2613.6,2613.2,0.00116756]
[1645394778103,0.9573855,2613.5,2613.2,0.00116756]
[1645394778305,0.7443,2613.4,2613.2,0.00116756]
[1645394778505,1.0443,2613.4,2613.2,0.00116756]
[1645394778806,1.0443,2613.4,2611.9,1.9155]
[1645394778807,5.9577,2613.3,2611.9,1.9155]
[1645394779004,0.9578599,2612.9,2611.9,1.9155]
[1645394779301,0.7443,2612.8,2611.9,1.9155]
[1645394779705,1.0443,2612.8,2611.9,1.9155]
[1645394779905,1.184439,2612.5,2611.9,1.9155]
[1645394780102,0.9578383,2612.3,2611.9,1.9155]
[1645394780660,0.3,2612.3,2611.9,1.9155]
[1645394781158,0.553,2612.8,2611.9,1.9155]
[1645394781361,0.853,2612.8,2611.9,1.9155]
[1645394781561,0.95773,2612.6,2611.9,1.9155]
[1645394781759,0.3,2612.8,2612.3,1.1202527]
[1645394781760,0.3,2612.5,2612.3,1.1202527]
[1645394781960,0.3,2612.8,2612.3,2.0777927]